[Event "Polish Youth G16 Championship 2023"]
[Site "Jastrzebia Gora"]
[Date "2023.03.19"]
[Round "9.13"]
[White "Dura, Anna"]
[Black "Pastuszko, Katarzyna"]
[Result "1-0"]
[ECO "D32"]
[WhiteElo "1186"]
[BlackElo "1286"]
[Annotator "NA RC COMBH"]
[PlyCount "87"]
[EventDate "2023.03.11"]
[EventType "swiss"]
[EventCountry "POL"]
[SourceTitle "playchess.com"]
[Source "ChessBase"]
[SourceQuality "1"]
[TimeControl "40/5400+30:1800+30"]

1. d4 {[%emt 0:00:01]} d5 {[%emt 0:00:13]} 2. c4 {[%emt 0:00:19]} e6 {[%emt 0:00:21]} 3. Nc3 {[%emt 0:01:46]} c5 {[%emt 0:00:28]} 4. e3 {[%emt 0:02:18]} Nc6 {[%emt 0:04:27]} 5. cxd5 {[%emt 0:03:49]} exd5 {[%emt 0:02:44]} 6. dxc5 {[%emt 0:01:59]} Nf6 {[%emt 0:02:06]} 7. Nf3 {[%emt 0:04:03]} Bxc5 {[%emt 0:02:50]} 8. Be2 {[%emt 0:01:43]} O-O {[%emt 0:02:11]} 9. O-O {[%emt 0:00:44]} Be6 {[%emt 0:05:41]} 10. b3 {[%emt 0:02:41]} h6 {[%emt 0:05:41]} 11. Bb2 {[%emt 0:03:29]} Qe7 {[%emt 0:07:07]} 12. Na4 {[%emt 0:05:34]} Bd6 {[%emt 0:01:14]} 13. Nd4 {[%emt 0:01:17]} Rad8 {[%emt 0:05:25]} 14. Rc1 {[%emt 0:02:16]} Ne5 {[%emt 0:04:13]} 15. Nb5 {[%emt 0:08:19]} a6 {[%emt 0:03:46]} 16. Nxd6 {[%emt 0:03:28]} Qxd6 {[%emt 0:00:55]} 17. Nc5 {[%emt 0:05:12]} Neg4 {[%emt 0:05:06]} 18. g3 {[%emt 0:00:31]} Rc8 {[%emt 0:02:24]} 19. Qd4 {[%emt 0:05:25]} h5 {[%emt 0:13:15]} 20. Nxb7 {[%emt 0:04:49]} Qb8 {[%emt 0:03:47]} 21. Nc5 {[%emt 0:02:11]} Qd6 {[%emt 0:06:12]} 22. Ne4 {[%emt 0:04:53]} Qe7 {[%emt 0:01:34]} 23. Nxf6+ {[%emt 0:00:43]} Nxf6 {[%emt 0:00:56]} 24. Qh4 {[%emt 0:00:58]} Rfd8 {[%emt 0:03:02]} 25. Bxh5 {[%emt 0:03:46]} Bf5 {[%emt 0:02:25]} 26. Bg4 {[%emt 0:04:04]} Bxg4 {[%emt 0:00:28]} 27. Bxf6 {[%emt 0:00:10]} Qxf6 {[%emt 0:00:14]} 28. Qxg4 {[%emt 0:00:07]} Rxc1 {[%emt 0:00:30]} 29. Rxc1 {[%emt 0:01:08]} Qb2 {[%emt 0:01:00]} 30. Rc8 {[%emt 0:01:52]} Rxc8 {[%emt 0:01:00]} 31. Qxc8+ {[%emt 0:00:06]} Kh7 {[%emt 0:00:07]} 32. Qf5+ {[%emt 0:00:27]} Kg8 {[%emt 0:00:42]} 33. Qxd5 {[%emt 0:00:27]} Qxa2 {[%emt 0:00:19]} 34. Qc4 {[%emt 0:00:40]} a5 {[%emt 0:00:43]} 35. h4 {[%emt 0:03:03]} Qb1+ {[%emt 0:01:53]} 36. Kg2 {[%emt 0:00:31]} Qa2 {[%emt 0:00:53]} 37. Qa4 {[%emt 0:01:45]} Qb2 {[%emt 0:00:30]} 38. Qe8+ {[%emt 0:00:29]} Kh7 {[%emt 0:00:16]} 39. Qxf7 {[%emt 0:00:08]} Qa2 {[%emt 0:00:49]} 40. h5 {[%emt 0:00:00]} Qa3 {[%emt 0:00:00]} 41. Qg6+ {[%emt 0:02:31]} Kg8 {[%emt 0:01:06]} 42. h6 {[%emt 0:00:12]} Qb2 {[%emt 0:00:45]} 43. Qxg7+ {[%emt 0:00:14]} Qxg7 {[%emt 0:00:09]} 44. hxg7 {[%emt 0:00:03]} 1-0

[Event "Polish Youth G16 Championship 2023"]
[Site "Jastrzebia Gora"]
[Date "2023.03.19"]
[Round "9.14"]
[White "Nowak, Zuzanna"]
[Black "Kicinska, Magdalena"]
[Result "1-0"]
[ECO "B10"]
[WhiteElo "1427"]
[BlackElo "1573"]
[Annotator "NA RC COMBH"]
[PlyCount "97"]
[EventDate "2023.03.11"]
[EventType "swiss"]
[EventCountry "POL"]
[SourceTitle "playchess.com"]
[Source "ChessBase"]
[SourceQuality "1"]
[TimeControl "40/5400+30:1800+30"]

1. e4 {[%emt 0:00:02]} c6 {[%emt 0:00:04]} 2. c4 {[%emt 0:00:08]} d5 {[%emt 0:00:09]} 3. exd5 {[%emt 0:00:05]} cxd5 {[%emt 0:00:05]} 4. cxd5 {[%emt 0:00:05]} Nf6 {[%emt 0:00:20]} 5. Nc3 {[%emt 0:00:08]} Nxd5 {[%emt 0:00:34]} 6. Nf3 {[%emt 0:00:11]} e6 {[%emt 0:01:13]} 7. Bb5+ {[%emt 0:03:48]} Bd7 {[%emt 0:02:09]} 8. Qe2 {[%emt 0:01:03]} Nxc3 {[%emt 0:01:54]} 9. dxc3 {[%emt 0:01:51]} Bxb5 {[%emt 0:02:41]} 10. Qxb5+ {[%emt 0:00:02]} Qd7 {[%emt 0:00:11]} 11. Qxd7+ {[%emt 0:02:48]} Nxd7 {[%emt 0:00:09]} 12. Be3 {[%emt 0:00:03]} Be7 {[%emt 0:03:41]} 13. O-O-O {[%emt 0:00:34]} Nc5 {[%emt 0:03:40]} 14. Ne5 {[%emt 0:07:46]} f6 {[%emt 0:05:31]} 15. Nc4 {[%emt 0:04:19]} b6 {[%emt 0:13:47]} 16. Nd6+ {[%emt 0:03:47]} Bxd6 {[%emt 0:15:48]} 17. Rxd6 {[%emt 0:00:01]} Ke7 {[%emt 0:00:09]} 18. Bxc5 {[%emt 0:05:19]} bxc5 {[%emt 0:00:08]} 19. Rhd1 {[%emt 0:00:03]} Rhd8 {[%emt 0:00:20]} 20. Rc6 {[%emt 0:00:26]} Rac8 {[%emt 0:02:26]} 21. Rxd8 {[%emt 0:07:55]} Rxc6 {[%emt 0:01:19]} 22. Rg8 {[%emt 0:00:20]} Kf7 {[%emt 0:00:36]} 23. Rb8 {[%emt 0:00:05]} Rc7 {[%emt 0:00:14]} 24. c4 {[%emt 0:00:10]} Kg6 {[%emt 0:04:19]} 25. Kc2 {[%emt 0:02:43]} Kf5 {[%emt 0:03:12]} 26. Kc3 {[%emt 0:10:06]} e5 {[%emt 0:03:29]} 27. Re8 {[%emt 0:02:08]} g5 {[%emt 0:10:53]} 28. a3 {[%emt 0:02:06]} h5 {[%emt 0:02:21]} 29. b4 {[%emt 0:03:32]} h4 {[%emt 0:08:42]} 30. h3 {[%emt 0:02:03]} g4 {[%emt 0:05:59]} 31. hxg4+ {[%emt 0:00:40]} Kxg4 {[%emt 0:00:05]} 32. b5 {[%emt 0:05:14]} Kf4 {[%emt 0:06:10]} 33. Rh8 {[%emt 0:04:14]} Kg4 {[%emt 0:00:36]} 34. a4 {[%emt 0:00:52]} f5 {[%emt 0:00:33]} 35. Rh6 {[%emt 0:00:37]} e4 {[%emt 0:00:59]} 36. Rc6 {[%emt 0:19:40]} Rg7 {[%emt 0:00:25]} 37. a5 {[%emt 0:03:15]} Kf4 {[%emt 0:00:22]} 38. b6 {[%emt 0:00:15]} axb6 {[%emt 0:00:07]} 39. axb6 {[%emt 0:00:09]} Rb7 {[%emt 0:00:20]} 40. Kd2 {[%emt 0:00:00]} Rg7 {[%emt 0:00:00]} 41. Rxc5 {[%emt 0:14:34]} Rxg2 {[%emt 0:05:46]} 42. b7 {[%emt 0:00:25]} e3+ {[%emt 0:01:04]} 43. Kd3 {[%emt 0:02:45]} exf2 {[%emt 0:01:18]} 44. b8=Q+ {[%emt 0:00:07]} Kg4 {[%emt 0:00:16]} 45. Ke2 {[%emt 0:01:52]} f4 {[%emt 0:01:57]} 46. Qc8+ {[%emt 0:00:47]} Kg3 {[%emt 0:00:15]} 47. Rg5+ {[%emt 0:00:25]} Kh2 {[%emt 0:00:09]} 48. Rxg2+ {[%emt 0:00:05]} Kxg2 {[%emt 0:00:08]} 49. Qg4+ {[%emt 0:00:04]} 1-0

[Event "Polish Youth G16 Championship 2023"]
[Site "Jastrzebia Gora"]
[Date "2023.03.19"]
[Round "9.15"]
[White "Michalska, Anna-Maria"]
[Black "Pietryk, Joanna"]
[Result "0-1"]
[ECO "A22"]
[WhiteElo "1417"]
[BlackElo "1488"]
[Annotator "NA RC COMBH"]
[PlyCount "66"]
[EventDate "2023.03.11"]
[EventType "swiss"]
[EventCountry "POL"]
[SourceTitle "playchess.com"]
[Source "ChessBase"]
[SourceQuality "1"]
[TimeControl "40/5400+30:1800+30"]

1. c4 {[%emt 0:00:02]} e5 {[%emt 0:00:06]} 2. Nc3 {[%emt 0:00:14]} Nf6 {[%emt 0:00:07]} 3. e4 {[%emt 0:01:20]} Nc6 {[%emt 0:01:18]} 4. Nge2 {[%emt 0:01:00]} Bc5 {[%emt 0:06:17]} 5. h3 {[%emt 0:02:24]} d6 {[%emt 0:05:31]} 6. d3 {[%emt 0:00:28]} h6 {[%emt 0:01:24]} 7. g3 {[%emt 0:00:58]} Be6 {[%emt 0:01:33]} 8. Bg2 {[%emt 0:03:11]} Qd7 {[%emt 0:01:53]} 9. a3 {[%emt 0:02:48]} a5 {[%emt 0:02:39]} 10. Rb1 {[%emt 0:01:17]} O-O {[%emt 0:02:22]} 11. Nd5 {[%emt 0:03:48]} Bxd5 {[%emt 0:00:52]} 12. cxd5 {[%emt 0:00:20]} Nd4 {[%emt 0:00:56]} 13. Be3 {[%emt 0:00:52]} Nxe2 {[%emt 0:02:41]} 14. Qxe2 {[%emt 0:00:14]} Qb5 {[%emt 0:01:01]} 15. Bxc5 {[%emt 0:01:00]} Qxc5 {[%emt 0:00:19]} 16. O-O {[%emt 0:00:29]} Nd7 {[%emt 0:04:28]} 17. Kh2 {[%emt 0:01:11]} Qd4 {[%emt 0:01:48]} 18. Rbc1 {[%emt 0:06:48]} Nc5 {[%emt 0:05:13]} 19. Rfd1 {[%emt 0:02:06]} Qa4 {[%emt 0:01:11]} 20. Qc2 {[%emt 0:01:32]} Qb5 {[%emt 0:02:05]} 21. Bf1 {[%emt 0:01:02]} Qb6 {[%emt 0:04:04]} 22. h4 {[%emt 0:03:20]} Nb3 {[%emt 0:01:28]} 23. Rb1 {[%emt 0:02:55]} Nd4 {[%emt 0:03:15]} 24. Qc3 {[%emt 0:02:05]} f5 {[%emt 0:01:55]} 25. Kg2 {[%emt 0:03:14]} fxe4 {[%emt 0:01:42]} 26. dxe4 {[%emt 0:00:22]} Rf3 {[%emt 0:04:01]} 27. Rd3 {[%emt 0:03:04]} Rxf2+ {[%emt 0:03:00]} 28. Kh3 {[%emt 0:06:31]} Raf8 {[%emt 0:02:13]} 29. Bg2 {[%emt 0:01:04]} Rc2 {[%emt 0:03:14]} 30. Qe1 {[%emt 0:07:32]} Rff2 {[%emt 0:01:48]} 31. Qd1 {[%emt 0:03:49]} Rxg2 {[%emt 0:01:54]} 32. Qh5 {[%emt 0:00:21]} Rh2+ {[%emt 0:01:18]} 33. Kg4 {[%emt 0:00:06]} Qb5 {[%emt 0:02:45]} 0-1

[Event "Polish Youth G16 Championship 2023"]
[Site "Jastrzebia Gora"]
[Date "2023.03.19"]
[Round "9.16"]
[White "Bauer, Maja"]
[Black "Bandyk, Joanna"]
[Result "1-0"]
[ECO "B92"]
[WhiteElo "1383"]
[BlackElo "1459"]
[Annotator "NA RC COMBH"]
[PlyCount "49"]
[EventDate "2023.03.11"]
[EventType "swiss"]
[EventCountry "POL"]
[SourceTitle "playchess.com"]
[Source "ChessBase"]
[SourceQuality "1"]
[TimeControl "40/5400+30:1800+30"]

1. e4 {[%emt 0:00:02]} c5 {[%emt 0:00:05]} 2. Nf3 {[%emt 0:00:08]} d6 {[%emt 0:00:05]} 3. d4 {[%emt 0:00:08]} cxd4 {[%emt 0:00:08]} 4. Nxd4 {[%emt 0:00:07]} Nf6 {[%emt 0:00:11]} 5. Nc3 {[%emt 0:00:10]} a6 {[%emt 0:00:42]} 6. Be2 {[%emt 0:01:25]} e5 {[%emt 0:01:42]} 7. Nb3 {[%emt 0:01:08]} Be7 {[%emt 0:01:31]} 8. O-O {[%emt 0:01:31]} O-O {[%emt 0:01:11]} 9. f4 {[%emt 0:04:36]} b5 {[%emt 0:10:07]} 10. a3 {[%emt 0:07:25]} Bb7 {[%emt 0:04:08]} 11. Bf3 {[%emt 0:01:15]} Nbd7 {[%emt 0:02:53]} 12. Qe1 {[%emt 0:04:41]} exf4 {[%emt 0:05:13]} 13. Bxf4 {[%emt 0:02:12]} Ne5 {[%emt 0:01:48]} 14. Rd1 {[%emt 0:16:41]} Qc7 {[%emt 0:05:48]} 15. Qg3 {[%emt 0:05:14]} Rfd8 {[%emt 0:02:08]} 16. Nd4 {[%emt 0:05:31]} Bc8 {[%emt 0:09:17]} 17. Bg5 {[%emt 0:12:57]} Ne8 {[%emt 0:16:22]} 18. Nd5 {[%emt 0:06:59]} Qa7 {[%emt 0:07:05]} 19. Nxe7+ {[%emt 0:02:51]} Kh8 {[%emt 0:00:43]} 20. Kh1 {[%emt 0:16:11]} Bd7 {[%emt 0:08:33]} 21. Bf4 {[%emt 0:02:24]} Qc7 {[%emt 0:02:31]} 22. Nd5 {[%emt 0:01:18]} Qb8 {[%emt 0:02:10]} 23. Bh5 {[%emt 0:02:31]} Ng6 {[%emt 0:06:11]} 24. Bxg6 {[%emt 0:00:23]} fxg6 {[%emt 0:00:19]} 25. Bg5 {[%emt 0:00:48]} 1-0

[Event "Polish Youth G16 Championship 2023"]
[Site "Jastrzebia Gora"]
[Date "2023.03.19"]
[Round "9.17"]
[White "Gajec, Roza"]
[Black "Niedorys, Karolina"]
[Result "0-1"]
[ECO "B77"]
[WhiteElo "1341"]
[BlackElo "1458"]
[Annotator "NA RC COMBH"]
[PlyCount "42"]
[EventDate "2023.03.11"]
[EventType "swiss"]
[EventCountry "POL"]
[SourceTitle "playchess.com"]
[Source "ChessBase"]
[SourceQuality "1"]
[TimeControl "40/5400+30:1800+30"]

1. e4 {[%emt 0:00:01]} c5 {[%emt 0:00:08]} 2. Nf3 {[%emt 0:00:03]} d6 {[%emt 0:00:05]} 3. d4 {[%emt 0:00:04]} cxd4 {[%emt 0:00:04]} 4. Nxd4 {[%emt 0:00:03]} Nf6 {[%emt 0:00:05]} 5. Nc3 {[%emt 0:00:05]} g6 {[%emt 0:00:13]} 6. Be3 {[%emt 0:00:10]} Bg7 {[%emt 0:00:07]} 7. f3 {[%emt 0:00:08]} O-O {[%emt 0:00:17]} 8. Qd2 {[%emt 0:00:21]} Nc6 {[%emt 0:00:07]} 9. Bc4 {[%emt 0:00:23]} Nxd4 {[%emt 0:00:09]} 10. Bxd4 {[%emt 0:00:10]} Be6 {[%emt 0:00:10]} 11. Bxe6 {[%emt 0:00:23]} fxe6 {[%emt 0:00:04]} 12. g4 {[%emt 0:01:26]} Qa5 {[%emt 0:04:49]} 13. O-O-O {[%emt 0:01:46]} b5 {[%emt 0:01:38]} 14. Kb1 {[%emt 0:01:52]} Rac8 {[%emt 0:02:05]} 15. Nd5 {[%emt 0:03:06]} Qxd2 {[%emt 0:01:08]} 16. Rxd2 {[%emt 0:02:23]} exd5 {[%emt 0:00:58]} 17. exd5 {[%emt 0:02:02]} Nd7 {[%emt 0:02:36]} 18. Bxa7 {[%emt 0:04:17]} Rxf3 {[%emt 0:01:50]} 19. Re1 {[%emt 0:03:09]} Rcf8 {[%emt 0:06:20]} 20. Rde2 {[%emt 0:01:29]} Be5 {[%emt 0:01:24]} 21. Bg1 {[%emt 0:02:07]} Nf6 0-1

[Event "Polish Youth G16 Championship 2023"]
[Site "Jastrzebia Gora"]
[Date "2023.03.19"]
[Round "9.18"]
[White "Pniewska, Beata"]
[Black "Sliwicka, Weronika"]
[Result "1-0"]
[ECO "A30"]
[WhiteElo "1448"]
[BlackElo "1374"]
[Annotator "NA RC COMBH"]
[PlyCount "61"]
[EventDate "2023.03.11"]
[EventType "swiss"]
[EventCountry "POL"]
[SourceTitle "playchess.com"]
[Source "ChessBase"]
[SourceQuality "1"]
[TimeControl "40/5400+30:1800+30"]

1. c4 c5 2. g3 Nc6 3. Bg2 g6 4. e3 e5 5. Ne2 Bg7 6. Nbc3 Nge7 7. O-O d6 8. b3 Be6 9. Bb2 O-O 10. Ne4 h6 11. d4 cxd4 12. exd4 d5 13. cxd5 Bxd5 14. dxe5 Nxe5 15. f4 Nf3+ 16. Bxf3 Bxb2 17. Rb1 Qb6+ 18. Kg2 Nf5 19. Kh1 Ne3 20. Qd3 Bxe4 21. Qxe4 Nxf1 22. Rxf1 Rab8 23. f5 g5 24. Qg4 Rfe8 25. Nf4 Qb4 26. Bd5 Rf8 27. Qh5 gxf4 28. Qg6+ Bg7 29. f6 Qe4+ 30. Qxe4 Bxf6 31. Qxf4 1-0

[Event "Polish Youth G16 Championship 2023"]
[Site "Jastrzebia Gora"]
[Date "2023.03.19"]
[Round "9.19"]
[White "Butkiewicz, Hanna"]
[Black "Zgoda, Aleksandra"]
[Result "1-0"]
[ECO "B41"]
[WhiteElo "1120"]
[BlackElo "1308"]
[Annotator "NA RC COMBH"]
[PlyCount "41"]
[EventDate "2023.03.11"]
[EventType "swiss"]
[EventCountry "POL"]
[SourceTitle "playchess.com"]
[Source "ChessBase"]
[SourceQuality "1"]
[TimeControl "40/5400+30:1800+30"]

1. e4 {[%emt 0:00:02]} c5 {[%emt 0:00:08]} 2. Nf3 {[%emt 0:00:05]} e6 {[%emt 0:00:09]} 3. d4 {[%emt 0:00:09]} cxd4 {[%emt 0:00:18]} 4. Nxd4 {[%emt 0:00:05]} a6 {[%emt 0:00:33]} 5. a4 {[%emt 0:00:13]} Qc7 {[%emt 0:00:51]} 6. Nc3 {[%emt 0:00:46]} Nc6 {[%emt 0:01:20]} 7. Nxc6 {[%emt 0:00:13]} bxc6 {[%emt 0:01:57]} 8. Be2 {[%emt 0:00:12]} Nf6 {[%emt 0:03:01]} 9. O-O {[%emt 0:00:53]} Bb4 {[%emt 0:03:52]} 10. Bd3 {[%emt 0:03:28]} d5 {[%emt 0:04:05]} 11. exd5 {[%emt 0:02:15]} cxd5 {[%emt 0:00:45]} 12. Ne2 {[%emt 0:05:15]} Bd6 {[%emt 0:07:29]} 13. h3 {[%emt 0:00:35]} e5 {[%emt 0:07:04]} 14. Nc3 {[%emt 0:02:35]} O-O {[%emt 0:08:03]} 15. Bg5 {[%emt 0:02:03]} d4 {[%emt 0:05:41]} 16. Bxf6 {[%emt 0:12:27]} dxc3 {[%emt 0:02:21]} 17. Bxh7+ {[%emt 0:00:31]} Kh8 {[%emt 0:04:00]} 18. Qh5 {[%emt 0:00:28]} Rd8 {[%emt 0:00:37]} 19. Bf5+ {[%emt 0:00:14]} Kg8 {[%emt 0:00:11]} 20. Qh7+ {[%emt 0:00:10]} Kf8 {[%emt 0:00:04]} 21. Qh8# {[%emt 0:00:12]} 1-0

[Event "Polish Youth G16 Championship 2023"]
[Site "Jastrzebia Gora"]
[Date "2023.03.19"]
[Round "9.20"]
[White "Domeradzka, Karolina"]
[Black "Racis, Dominika"]
[Result "1-0"]
[ECO "B01"]
[WhiteElo "1194"]
[BlackElo "1201"]
[Annotator "NA RC COMBH"]
[PlyCount "71"]
[EventDate "2023.03.11"]
[EventType "swiss"]
[EventCountry "POL"]
[SourceTitle "playchess.com"]
[Source "ChessBase"]
[SourceQuality "1"]
[TimeControl "40/5400+30:1800+30"]

1. e4 {[%emt 0:00:03]} d5 {[%emt 0:00:04]} 2. exd5 {[%emt 0:00:03]} Qxd5 {[%emt 0:00:07]} 3. Nc3 {[%emt 0:00:05]} Qd8 {[%emt 0:00:05]} 4. d4 {[%emt 0:00:15]} Nf6 {[%emt 0:00:07]} 5. Bc4 {[%emt 0:00:20]} Bf5 {[%emt 0:01:19]} 6. Nf3 {[%emt 0:00:17]} e6 {[%emt 0:00:08]} 7. Bg5 {[%emt 0:00:15]} Be7 {[%emt 0:00:20]} 8. Qe2 {[%emt 0:00:26]} Nbd7 9. O-O-O c6 {[%emt 0:00:49]} 10. Ne5 {[%emt 0:00:55]} Nd5 {[%emt 0:02:49]} 11. Nxd5 {[%emt 0:01:10]} exd5 {[%emt 0:12:26]} 12. Bxe7 {[%emt 0:01:30]} Qxe7 {[%emt 0:00:21]} 13. Bd3 Bxd3 {[%emt 0:03:43]} 14. Rxd3 {[%emt 0:03:34]} O-O-O {[%emt 0:01:44]} 15. Qg4 {[%emt 0:02:44]} f6 {[%emt 0:10:03]} 16. Nf3 {[%emt 0:00:30]} h5 {[%emt 0:04:18]} 17. Qg3 {[%emt 0:04:13]} f5 18. h4 Nf6 {[%emt 0:11:40]} 19. Ne5 {[%emt 0:15:38]} Rh6 {[%emt 0:09:44]} 20. Ra3 {[%emt 0:01:27]} a6 {[%emt 0:00:47]} 21. Rb3 {[%emt 0:00:56]} Nd7 {[%emt 0:04:46]} 22. Re1 {[%emt 0:21:19]} Nf6 {[%emt 0:03:47]} 23. f3 {[%emt 0:00:41]} Qc7 {[%emt 0:01:55]} 24. Qg5 {[%emt 0:01:34]} Kb8 {[%emt 0:00:31]} 25. Qxf5 {[%emt 0:00:31]} Nd7 {[%emt 0:01:05]} 26. Rbe3 {[%emt 0:06:24]} Ka7 27. Qg5 {[%emt 0:04:21]} Nb6 {[%emt 0:03:08]} 28. b3 {[%emt 0:01:03]} a5 {[%emt 0:02:23]} 29. Nd3 {[%emt 0:01:42]} a4 {[%emt 0:04:00]} 30. Nc5 {[%emt 0:00:10]} axb3 {[%emt 0:01:16]} 31. axb3 {[%emt 0:01:06]} Nd7 {[%emt 0:03:43]} 32. Qxg7 {[%emt 0:00:33]} Qa5 {[%emt 0:01:10]} 33. Qxh6 {[%emt 0:01:40]} Qa1+ {[%emt 0:00:29]} 34. Kd2 {[%emt 0:00:03]} Qxd4+ {[%emt 0:00:10]} 35. Nd3 {[%emt 0:00:04]} Qg7 36. Qf4 {[%emt 0:01:21]} 1-0

[Event "Polish Youth G16 Championship 2023"]
[Site "Jastrzebia Gora"]
[Date "2023.03.19"]
[Round "9.21"]
[White "Ekner, Maria"]
[Black "Krzysztynska, Maria"]
[Result "0-1"]
[ECO "A44"]
[WhiteElo "1337"]
[BlackElo "1335"]
[Annotator "NA RC COMBH"]
[PlyCount "102"]
[EventDate "2023.03.11"]
[EventType "swiss"]
[EventCountry "POL"]
[SourceTitle "playchess.com"]
[Source "ChessBase"]
[SourceQuality "1"]
[TimeControl "40/5400+30:1800+30"]

1. d4 {[%emt 0:00:02]} c5 {[%emt 0:02:55]} 2. d5 {[%emt 0:00:22]} e5 {[%emt 0:00:28]} 3. e4 {[%emt 0:00:58]} d6 {[%emt 0:00:22]} 4. Nf3 {[%emt 0:00:41]} a6 {[%emt 0:01:00]} 5. c4 {[%emt 0:01:29]} Be7 {[%emt 0:00:42]} 6. Be2 {[%emt 0:00:36]} Bg4 {[%emt 0:02:57]} 7. Nfd2 {[%emt 0:02:03]} Bxe2 {[%emt 0:01:40]} 8. Qxe2 {[%emt 0:00:10]} Bg5 {[%emt 0:02:58]} 9. O-O {[%emt 0:01:01]} Ne7 {[%emt 0:03:05]} 10. Nc3 {[%emt 0:01:04]} O-O {[%emt 0:01:22]} 11. Qg4 {[%emt 0:05:01]} Bh6 {[%emt 0:04:21]} 12. Ne2 {[%emt 0:03:03]} f5 {[%emt 0:02:52]} 13. exf5 {[%emt 0:00:43]} Nxf5 {[%emt 0:16:39]} 14. Qh3 {[%emt 0:04:18]} Nd7 {[%emt 0:09:02]} 15. f4 {[%emt 0:00:29]} exf4 {[%emt 0:05:23]} 16. Nxf4 {[%emt 0:00:51]} Nd4 {[%emt 0:07:50]} 17. Ne4 {[%emt 0:03:15]} Bxf4 {[%emt 0:04:01]} 18. Bxf4 {[%emt 0:04:10]} Ne2+ {[%emt 0:01:14]} 19. Kh1 {[%emt 0:00:06]} Nxf4 {[%emt 0:00:38]} 20. Qg4 {[%emt 0:01:24]} Ne5 {[%emt 0:02:32]} 21. Qg3 {[%emt 0:02:44]} Ned3 {[%emt 0:06:12]} 22. Rf3 {[%emt 0:04:02]} Qe7 {[%emt 0:05:08]} 23. Nc3 {[%emt 0:04:48]} Rae8 {[%emt 0:04:03]} 24. h3 {[%emt 0:03:08]} Rf6 {[%emt 0:02:07]} 25. Rxd3 {[%emt 0:01:25]} Nxd3 {[%emt 0:00:53]} 26. Qxd3 {[%emt 0:00:14]} Qe5 {[%emt 0:04:04]} 27. a3 {[%emt 0:02:22]} Rf4 {[%emt 0:02:42]} 28. b3 {[%emt 0:03:46]} Ref8 {[%emt 0:01:56]} 29. Rc1 {[%emt 0:02:40]} Qg5 {[%emt 0:01:09]} 30. Rg1 {[%emt 0:02:48]} Rd4 {[%emt 0:00:43]} 31. Qe2 {[%emt 0:01:14]} Qh6 {[%emt 0:01:58]} 32. Ne4 {[%emt 0:01:08]} Qg6 {[%emt 0:00:55]} 33. Nf2 {[%emt 0:01:11]} Re8 {[%emt 0:00:32]} 34. Qf3 {[%emt 0:00:55]} Rf8 {[%emt 0:00:38]} 35. Qe2 {[%emt 0:00:12]} Rdf4 {[%emt 0:00:40]} 36. Ng4 {[%emt 0:00:59]} h5 {[%emt 0:00:53]} 37. Nh2 {[%emt 0:00:52]} Rf2 {[%emt 0:00:27]} 38. Qe7 {[%emt 0:00:30]} R8f7 {[%emt 0:00:43]} 39. Qe8+ {[%emt 0:00:37]} Kh7 {[%emt 0:00:13]} 40. b4 {[%emt 0:00:00]} cxb4 {[%emt 0:00:00]} 41. axb4 {[%emt 0:00:56]} Qd3 {[%emt 0:05:35]} 42. Qe6 {[%emt 0:03:35]} R2f6 {[%emt 0:03:30]} 43. Qc8 {[%emt 0:00:15]} Qb3 {[%emt 0:01:14]} 44. Nf3 {[%emt 0:01:05]} Rxf3 {[%emt 0:01:06]} 45. gxf3 {[%emt 0:00:08]} Rxf3 {[%emt 0:06:33]} 46. Rg3 {[%emt 0:00:53]} Rxg3 {[%emt 0:05:24]} 47. Qf5+ {[%emt 0:00:11]} Kh6 {[%emt 0:02:58]} 48. Qf4+ {[%emt 0:00:13]} Rg5 {[%emt 0:01:06]} 49. Qxd6+ {[%emt 0:00:25]} Kh7 {[%emt 0:00:51]} 50. Qe6 {[%emt 0:00:33]} Qd1+ {[%emt 0:00:24]} 51. Kh2 {[%emt 0:00:13]} Qg1# {[%emt 0:00:08]} 0-1

[Event "Polish Youth G16 Championship 2023"]
[Site "Jastrzebia Gora"]
[Date "2023.03.19"]
[Round "9.22"]
[White "Idzior, Izabela"]
[Black "Danek, Wiktoria"]
[Result "1-0"]
[ECO "C50"]
[WhiteElo "1287"]
[BlackElo "1161"]
[Annotator "NA RC COMBH"]
[PlyCount "93"]
[EventDate "2023.03.11"]
[EventType "swiss"]
[EventCountry "POL"]
[SourceTitle "playchess.com"]
[Source "ChessBase"]
[SourceQuality "1"]
[TimeControl "40/5400+30:1800+30"]

1. e4 {[%emt 0:00:03]} e5 {[%emt 0:00:10]} 2. Nf3 {[%emt 0:00:06]} Nc6 {[%emt 0:00:08]} 3. Bc4 {[%emt 0:00:11]} Bc5 {[%emt 0:00:17]} 4. d3 {[%emt 0:00:05]} d6 {[%emt 0:00:23]} 5. c3 {[%emt 0:00:05]} Bg4 {[%emt 0:00:43]} 6. Nbd2 {[%emt 0:00:17]} Nf6 {[%emt 0:02:32]} 7. h3 {[%emt 0:00:29]} Be6 {[%emt 0:02:09]} 8. Bb5 {[%emt 0:01:02]} Bd7 {[%emt 0:14:24]} 9. Ba4 {[%emt 0:00:19]} h6 {[%emt 0:01:30]} 10. Nf1 {[%emt 0:00:26]} Qe7 {[%emt 0:04:35]} 11. Ng3 {[%emt 0:01:13]} g5 {[%emt 0:15:30]} 12. b4 {[%emt 0:11:14]} Bb6 {[%emt 0:02:53]} 13. Bc2 {[%emt 0:03:30]} a6 {[%emt 0:05:27]} 14. a4 {[%emt 0:01:16]} d5 {[%emt 0:06:00]} 15. Bd2 {[%emt 0:05:44]} dxe4 {[%emt 0:01:01]} 16. dxe4 {[%emt 0:00:50]} Nh7 {[%emt 0:10:47]} 17. Nh5 {[%emt 0:02:14]} Rg8 {[%emt 0:03:48]} 18. Nh2 {[%emt 0:00:15]} Nf6 {[%emt 0:00:48]} 19. Ng3 {[%emt 0:03:24]} Rd8 {[%emt 0:06:40]} 20. Ng4 {[%emt 0:00:53]} Nxg4 {[%emt 0:02:46]} 21. hxg4 {[%emt 0:00:15]} Qf6 {[%emt 0:02:45]} 22. Qe2 {[%emt 0:00:14]} Bxg4 {[%emt 0:00:47]} 23. f3 {[%emt 0:00:18]} Bd7 {[%emt 0:01:16]} 24. Nh5 {[%emt 0:00:22]} Qg6 {[%emt 0:01:23]} 25. g4 {[%emt 0:01:00]} Ne7 {[%emt 0:02:53]} 26. Bb3 {[%emt 0:05:55]} Be6 {[%emt 0:00:36]} 27. Bc2 {[%emt 0:07:30]} Bd7 {[%emt 0:00:23]} 28. Bd3 {[%emt 0:01:54]} Qd6 {[%emt 0:02:40]} 29. Bc4 {[%emt 0:01:04]} Rg6 {[%emt 0:01:08]} 30. b5 {[%emt 0:02:24]} axb5 {[%emt 0:01:32]} 31. axb5 {[%emt 0:00:32]} Qc5 {[%emt 0:02:02]} 32. Ra4 {[%emt 0:28:26]} Ng8 {[%emt 0:00:57]} 33. Bc1 {[%emt 0:01:20]} Nf6 {[%emt 0:01:28]} 34. Qa2 {[%emt 0:00:23]} Qf8 {[%emt 0:02:22]} 35. Ba3 {[%emt 0:04:46]} Qg8 {[%emt 0:00:03]} 36. Bb4 {[%emt 0:01:55]} Nxh5 {[%emt 0:01:10]} 37. Rxh5 {[%emt 0:00:08]} Be6 {[%emt 0:00:28]} 38. Bxe6 {[%emt 0:01:16]} Rxe6 {[%emt 0:00:01]} 39. Ra8 {[%emt 0:00:24]} Qg6 {[%emt 0:01:28]} 40. Rxd8+ {[%emt 0:00:00]} Kxd8 {[%emt 0:00:00]} 41. Qa8+ {[%emt 0:02:53]} Kd7 {[%emt 0:01:56]} 42. Rh2 {[%emt 0:00:17]} Be3 {[%emt 0:04:02]} 43. Ke2 {[%emt 0:00:17]} Bf4 {[%emt 0:01:32]} 44. Rh1 {[%emt 0:00:07]} Rd6 {[%emt 0:00:06]} 45. Bxd6 {[%emt 0:00:18]} cxd6 {[%emt 0:00:35]} 46. Qxb7+ {[%emt 0:00:05]} Ke8 {[%emt 0:01:23]} 47. Ra1 {[%emt 0:00:08]} 1-0